[Event "Early-Titled-Tuesday-Blitz-April-02-2024"]
[Site "Chess.com"]
[Date "2024.04.02"]
[Round "9"]
[White "NowInChess"]
[Black "abelmat"]
[Result "1-0"]
[WhiteElo "2258"]
[BlackElo "2126"]
[TimeControl "180+1"]
[EndTime "9:44:54 PDT"]
[Termination "NowInChess won by resignation"]

1. e4 {[%clk 0:03:00.9]} 1... e6 {[%clk 0:02:59.7]} 2. d3 {[%clk 0:03:00.1]}
2... d5 {[%clk 0:03:00.5]} 3. Nd2 {[%clk 0:03:00.2]} 3... Nc6 {[%clk 0:02:59.4]}
4. Ngf3 {[%clk 0:02:56.2]} 4... Nf6 {[%clk 0:02:57.9]} 5. c3 {[%clk 0:02:54.7]}
5... dxe4 {[%clk 0:02:55]} 6. dxe4 {[%clk 0:02:54.4]} 6... e5 {[%clk 0:02:54.9]}
7. Bb5 {[%clk 0:02:53.5]} 7... Bd6 {[%clk 0:02:49.8]} 8. O-O {[%clk 0:02:39.6]}
8... O-O {[%clk 0:02:48]} 9. Re1 {[%clk 0:02:39.4]} 9... Be6 {[%clk 0:02:42.4]}
10. Ng5 {[%clk 0:02:34.8]} 10... Bg4 {[%clk 0:02:36.7]} 11. Qc2 {[%clk
0:02:24.3]} 11... Ne7 {[%clk 0:02:24.6]} 12. Nc4 {[%clk 0:02:06.8]} 12... h6
{[%clk 0:02:23.1]} 13. Nxd6 {[%clk 0:02:01.4]} 13... cxd6 {[%clk 0:02:22.7]} 14.
h3 {[%clk 0:01:44.6]} 14... hxg5 {[%clk 0:01:53.1]} 15. hxg4 {[%clk 0:01:45.5]}
15... Nxg4 {[%clk 0:01:38]} 16. Bxg5 {[%clk 0:01:43.1]} 16... Qb6 {[%clk
0:01:10.7]} 17. Bxe7 {[%clk 0:01:23.9]} 17... Qxb5 {[%clk 0:01:07.2]} 18. Bxf8
{[%clk 0:01:22.3]} 18... Rxf8 {[%clk 0:01:06.5]} 19. Qe2 {[%clk 0:01:19.5]}
19... Qd7 {[%clk 0:01:05]} 20. Red1 {[%clk 0:01:12.6]} 20... Qe6 {[%clk
0:00:57.6]} 21. Rd3 {[%clk 0:01:04.5]} 21... g6 {[%clk 0:00:34.6]} 22. Rad1
{[%clk 0:00:58.4]} 22... Rd8 {[%clk 0:00:30.5]} 23. Qd2 {[%clk 0:00:37]} 23...
Qf6 {[%clk 0:00:18.9]} 24. f3 {[%clk 0:00:34.1]} 24... Nh6 {[%clk 0:00:15.9]}
25. Qxh6 {[%clk 0:00:33.4]} 25... Qe6 {[%clk 0:00:13.6]} 26. Qd2 {[%clk
0:00:32.2]} 26... Kg7 {[%clk 0:00:11.2]} 27. Rxd6 {[%clk 0:00:31.8]} 27... Rxd6
{[%clk 0:00:10.4]} 28. Qxd6 {[%clk 0:00:32.7]} 28... Qxa2 {[%clk 0:00:09.6]} 29.
Qxe5+ {[%clk 0:00:31.7]} 29... Kh7 {[%clk 0:00:10.5]} 30. Rd8 {[%clk 0:00:26.3]}
1-0

[Event "Early-Titled-Tuesday-Blitz-April-02-2024"]
[Site "Chess.com"]
[Date "2024.04.02"]
[Round "9"]
[White "Sanyura"]
[Black "Actuary44"]
[Result "1-0"]
[WhiteElo "2623"]
[BlackElo "2517"]
[TimeControl "180+1"]
[EndTime "9:44:57 PDT"]
[Termination "Sanyura won by checkmate"]

1. Nf3 {[%clk 0:02:37.2]} 1... d6 {[%clk 0:02:59.7]} 2. g3 {[%clk 0:02:37]} 2...
e5 {[%clk 0:02:59.9]} 3. Bg2 {[%clk 0:02:37.2]} 3... f5 {[%clk 0:03:00.5]} 4. d3
{[%clk 0:02:37.6]} 4... g6 {[%clk 0:03:01.1]} 5. O-O {[%clk 0:02:38.1]} 5... Bg7
{[%clk 0:03:01.6]} 6. Nbd2 {[%clk 0:02:38.8]} 6... Ne7 {[%clk 0:03:01.8]} 7. e4
{[%clk 0:02:39.5]} 7... O-O {[%clk 0:03:01.8]} 8. exf5 {[%clk 0:02:39.8]} 8...
gxf5 {[%clk 0:03:01.2]} 9. Nh4 {[%clk 0:02:39.1]} 9... Nbc6 {[%clk 0:02:58.7]}
10. f4 {[%clk 0:02:29.5]} 10... Ng6 {[%clk 0:02:53.8]} 11. Nxg6 {[%clk
0:02:25.5]} 11... hxg6 {[%clk 0:02:54.7]} 12. fxe5 {[%clk 0:02:25.3]} 12... Nxe5
{[%clk 0:02:52.5]} 13. Nf3 {[%clk 0:02:23.7]} 13... Rb8 {[%clk 0:02:50.4]} 14.
d4 {[%clk 0:01:54.8]} 14... Ng4 {[%clk 0:02:44.4]} 15. Bg5 {[%clk 0:01:52.7]}
15... Qe8 {[%clk 0:02:30.8]} 16. Qd2 {[%clk 0:01:50.4]} 16... Qb5 {[%clk
0:02:20]} 17. c3 {[%clk 0:01:46.8]} 17... Be6 {[%clk 0:02:11.9]} 18. Nh4 {[%clk
0:01:39.2]} 18... Kh7 {[%clk 0:02:04.1]} 19. Rae1 {[%clk 0:01:32.1]} 19... Rbe8
{[%clk 0:01:57.7]} 20. d5 {[%clk 0:01:18.7]} 20... Bf7 {[%clk 0:01:50.9]} 21.
Be7 {[%clk 0:01:15.2]} 21... Qb6+ {[%clk 0:01:26.3]} 22. Kh1 {[%clk 0:01:14.6]}
22... Bh6 {[%clk 0:01:25.4]} 23. Qc2 {[%clk 0:00:43.8]} 23... Rg8 {[%clk
0:01:24.7]} 24. Nxf5 {[%clk 0:00:39.1]} 24... Bg5 {[%clk 0:01:10.4]} 25. Nd4
{[%clk 0:00:27.8]} 25... Nf6 {[%clk 0:00:05.1]} 26. h4 {[%clk 0:00:16.2]} 26...
Rxe7 {[%clk 0:00:02.6]} 27. Rxe7 {[%clk 0:00:15.8]} 27... Kg7 {[%clk 0:00:01.7]}
28. hxg5 {[%clk 0:00:15.6]} 28... Ng4 {[%clk 0:00:02.3]} 29. Rfxf7+ {[%clk
0:00:14.4]} 29... Kh8 {[%clk 0:00:03.2]} 30. Rh7# {[%clk 0:00:14.9]} 1-0

[Event "Early-Titled-Tuesday-Blitz-April-02-2024"]
[Site "Chess.com"]
[Date "2024.04.02"]
[Round "9"]
[White "zverr1"]
[Black "WCM-Mexicana"]
[Result "1/2-1/2"]
[WhiteElo "2554"]
[BlackElo "2414"]
[TimeControl "180+1"]
[EndTime "9:45:00 PDT"]
[Termination "Game drawn by stalemate"]

1. e4 {[%clk 0:02:58.1]} 1... c6 {[%clk 0:02:59.9]} 2. d4 {[%clk 0:02:57.2]}
2... d5 {[%clk 0:03:00.8]} 3. Nc3 {[%clk 0:02:53.2]} 3... dxe4 {[%clk
0:02:58.4]} 4. Nge2 {[%clk 0:02:53.7]} 4... Nf6 {[%clk 0:02:59.2]} 5. Ng3 {[%clk
0:02:47.1]} 5... g6 {[%clk 0:02:54.5]} 6. Ngxe4 {[%clk 0:02:43.2]} 6... Bg7
{[%clk 0:02:54.9]} 7. Be3 {[%clk 0:02:32.5]} 7... Nbd7 {[%clk 0:02:45.8]} 8. Be2
{[%clk 0:02:28.6]} 8... Nxe4 {[%clk 0:02:44.9]} 9. Nxe4 {[%clk 0:02:28.8]} 9...
O-O {[%clk 0:02:45]} 10. O-O {[%clk 0:02:28.7]} 10... Nf6 {[%clk 0:02:45.4]} 11.
Nxf6+ {[%clk 0:02:28.6]} 11... Bxf6 {[%clk 0:02:46.3]} 12. Bh6 {[%clk 0:02:23]}
12... Re8 {[%clk 0:02:44.5]} 13. c3 {[%clk 0:02:23.6]} 13... b6 {[%clk
0:02:35.2]} 14. Bf3 {[%clk 0:02:19.2]} 14... Bb7 {[%clk 0:02:34.5]} 15. Re1
{[%clk 0:02:12.9]} 15... e5 {[%clk 0:02:33.4]} 16. dxe5 {[%clk 0:01:55.2]} 16...
Rxe5 {[%clk 0:02:34.3]} 17. Qxd8+ {[%clk 0:01:12.7]} 17... Rxd8 {[%clk
0:02:35.2]} 18. Rxe5 {[%clk 0:01:09.9]} 18... Bxe5 {[%clk 0:02:36.1]} 19. Re1
{[%clk 0:01:10]} 19... f6 {[%clk 0:02:32]} 20. h4 {[%clk 0:01:03.6]} 20... Kf7
{[%clk 0:02:32]} 21. g3 {[%clk 0:00:57.2]} 21... Rd7 {[%clk 0:02:13.6]} 22. Kg2
{[%clk 0:00:56.4]} 22... c5 {[%clk 0:02:12.7]} 23. Bxb7 {[%clk 0:00:49]} 23...
Rxb7 {[%clk 0:02:13.6]} 24. Rd1 {[%clk 0:00:49]} 24... Ke8 {[%clk 0:02:04.4]}
25. Kf3 {[%clk 0:00:44.3]} 25... Re7 {[%clk 0:02:03.3]} 26. Rd3 {[%clk
0:00:40.7]} 26... Bc7 {[%clk 0:01:56.5]} 27. c4 {[%clk 0:00:37.7]} 27... Rd7
{[%clk 0:01:52.9]} 28. Rxd7 {[%clk 0:00:33.1]} 28... Kxd7 {[%clk 0:01:53.8]} 29.
Ke4 {[%clk 0:00:15.7]} 29... Ke6 {[%clk 0:01:47.3]} 30. g4 {[%clk 0:00:12.7]}
30... Be5 {[%clk 0:01:45.5]} 31. b3 {[%clk 0:00:12.5]} 31... f5+ {[%clk
0:01:31.8]} 32. gxf5+ {[%clk 0:00:12.6]} 32... gxf5+ {[%clk 0:01:32.7]} 33. Kf3
{[%clk 0:00:13.4]} 33... Bf6 {[%clk 0:01:29.2]} 34. h5 {[%clk 0:00:12]} 34...
Be5 {[%clk 0:01:26.4]} 35. Bg5 {[%clk 0:00:09.2]} 35... a6 {[%clk 0:01:26.7]}
36. Bd8 {[%clk 0:00:07.8]} 36... b5 {[%clk 0:01:26.5]} 37. Bb6 {[%clk
0:00:03.7]} 37... Kd6 {[%clk 0:01:23.9]} 38. Ba7 {[%clk 0:00:03]} 38... Kc6
{[%clk 0:01:20.6]} 39. a4 {[%clk 0:00:03.6]} 39... Bd6 {[%clk 0:01:19.4]} 40.
cxb5+ {[%clk 0:00:02.3]} 40... axb5 {[%clk 0:01:20.3]} 41. axb5+ {[%clk
0:00:03]} 41... Kxb5 {[%clk 0:01:21.1]} 42. Ke3 {[%clk 0:00:01.5]} 42... Ka6
{[%clk 0:01:20.9]} 43. Bxc5 {[%clk 0:00:01]} 43... Bxc5+ {[%clk 0:01:21.3]} 44.
Kf4 {[%clk 0:00:01.4]} 44... Bxf2 {[%clk 0:01:03.9]} 45. Kxf5 {[%clk 0:00:01.8]}
45... Kb7 {[%clk 0:01:02.9]} 46. Kg5 {[%clk 0:00:01.9]} 46... Be3+ {[%clk
0:01:01.8]} 47. Kf6 {[%clk 0:00:02.3]} 47... Kc7 {[%clk 0:01:00.5]} 48. Kf5
{[%clk 0:00:02.4]} 48... Kd7 {[%clk 0:01:00.4]} 49. Kg4 {[%clk 0:00:03.3]} 49...
Ke7 {[%clk 0:01:00.7]} 50. Kh3 {[%clk 0:00:04.2]} 50... Kf7 {[%clk 0:01:01.1]}
51. Kg2 {[%clk 0:00:05.1]} 51... Kg7 {[%clk 0:01:01.3]} 52. Kh1 {[%clk 0:00:06]}
52... Kh6 {[%clk 0:01:01]} 53. b4 {[%clk 0:00:06.9]} 53... Bb6 {[%clk
0:01:00.7]} 54. b5 {[%clk 0:00:07.8]} 54... Kxh5 {[%clk 0:01:01.4]} 55. Kg2
{[%clk 0:00:08.3]} 55... Kh4 {[%clk 0:01:02.3]} 56. Kh1 {[%clk 0:00:09.2]} 56...
Kh3 {[%clk 0:01:02.6]} 1/2-1/2

[Event "Early-Titled-Tuesday-Blitz-April-02-2024"]
[Site "Chess.com"]
[Date "2024.04.02"]
[Round "9"]
[White "JoliyRoger"]
[Black "HeroWilczek"]
[Result "0-1"]
[WhiteElo "2418"]
[BlackElo "2549"]
[TimeControl "180+1"]
[EndTime "9:45:00 PDT"]
[Termination "HeroWilczek won on time"]

1. d4 {[%clk 0:02:28.1]} 1... d5 {[%clk 0:02:59.1]} 2. Nf3 {[%clk 0:02:24.3]}
2... Nf6 {[%clk 0:02:57.5]} 3. c4 {[%clk 0:02:20.4]} 3... e6 {[%clk 0:02:55.2]}
4. e3 {[%clk 0:02:15.2]} 4... Be7 {[%clk 0:02:54.6]} 5. Nc3 {[%clk 0:02:15.7]}
5... O-O {[%clk 0:02:55.1]} 6. b3 {[%clk 0:02:15.4]} 6... b6 {[%clk 0:02:55]} 7.
Bd3 {[%clk 0:02:14.8]} 7... Bb7 {[%clk 0:02:55.1]} 8. O-O {[%clk 0:02:15.4]}
8... dxc4 {[%clk 0:02:54.8]} 9. bxc4 {[%clk 0:02:13.9]} 9... c5 {[%clk
0:02:55.3]} 10. Bb2 {[%clk 0:02:03.9]} 10... Nc6 {[%clk 0:02:52.5]} 11. d5
{[%clk 0:01:43.8]} 11... Nb4 {[%clk 0:02:32.8]} 12. e4 {[%clk 0:01:40]} 12...
Qc7 {[%clk 0:02:21.9]} 13. e5 {[%clk 0:01:28.2]} 13... exd5 {[%clk 0:01:47.5]}
14. exf6 {[%clk 0:01:21.1]} 14... Bxf6 {[%clk 0:01:48.4]} 15. cxd5 {[%clk
0:01:16.2]} 15... Rad8 {[%clk 0:01:44.5]} 16. Bc4 {[%clk 0:01:03]} 16... Qf4
{[%clk 0:01:42.3]} 17. Qb3 {[%clk 0:00:54.5]} 17... a6 {[%clk 0:01:22.4]} 18. a4
{[%clk 0:00:52.4]} 18... h5 {[%clk 0:01:13.7]} 19. Rad1 {[%clk 0:00:47.8]} 19...
h4 {[%clk 0:01:12.7]} 20. h3 {[%clk 0:00:48.3]} 20... Rfe8 {[%clk 0:01:07.7]}
21. Rfe1 {[%clk 0:00:42.3]} 21... Rxe1+ {[%clk 0:00:57.8]} 22. Rxe1 {[%clk
0:00:37.5]} 22... Bc8 {[%clk 0:00:56.6]} 23. Re4 {[%clk 0:00:27.9]} 23... Qd6
{[%clk 0:00:50.7]} 24. Nxh4 {[%clk 0:00:20.4]} 24... Bd4 {[%clk 0:00:48.7]} 25.
Nf3 {[%clk 0:00:19.3]} 25... Bf5 {[%clk 0:00:46.6]} 26. Rxd4 {[%clk 0:00:18]}
26... cxd4 {[%clk 0:00:44.6]} 27. Nxd4 {[%clk 0:00:18.7]} 27... Bg6 {[%clk
0:00:41.5]} 28. Nf3 {[%clk 0:00:11.6]} 28... a5 {[%clk 0:00:39.8]} 29. Ba3
{[%clk 0:00:10.9]} 29... Rc8 {[%clk 0:00:36.3]} 30. Nb5 {[%clk 0:00:08.3]} 30...
Qf4 {[%clk 0:00:33.3]} 31. Bxb4 {[%clk 0:00:06.4]} 31... axb4 {[%clk 0:00:31.1]}
32. Bf1 {[%clk 0:00:03.3]} 32... Rc1 {[%clk 0:00:27.1]} 0-1

[Event "Early-Titled-Tuesday-Blitz-April-02-2024"]
[Site "Chess.com"]
[Date "2024.04.02"]
[Round "9"]
[White "Hikaru"]
[Black "Polish_fighter3000"]
[Result "1-0"]
[WhiteElo "3267"]
[BlackElo "3144"]
[TimeControl "180+1"]
[EndTime "9:45:10 PDT"]
[Termination "Hikaru won on time"]

1. d4 {[%clk 0:03:00.9]} 1... Nf6 {[%clk 0:02:59.8]} 2. Bg5 {[%clk 0:02:59.2]}
2... c5 {[%clk 0:02:56.4]} 3. d5 {[%clk 0:02:58.7]} 3... d6 {[%clk 0:02:54.3]}
4. c4 {[%clk 0:02:58.5]} 4... h6 {[%clk 0:02:52.9]} 5. Bf4 {[%clk 0:02:49.9]}
5... e5 {[%clk 0:02:48.3]} 6. Bc1 {[%clk 0:02:46.3]} 6... Ne4 {[%clk 0:02:38.9]}
7. h4 {[%clk 0:02:34]} 7... Be7 {[%clk 0:02:34]} 8. g3 {[%clk 0:02:31.2]} 8...
f5 {[%clk 0:02:28.8]} 9. Bg2 {[%clk 0:02:18.1]} 9... Nd7 {[%clk 0:02:27.1]} 10.
Nf3 {[%clk 0:02:09]} 10... Ndf6 {[%clk 0:02:24.6]} 11. Nbd2 {[%clk 0:02:03.3]}
11... Nxf2 {[%clk 0:01:48.2]} 12. Kxf2 {[%clk 0:02:02.7]} 12... Ng4+ {[%clk
0:01:48.7]} 13. Kg1 {[%clk 0:02:02.9]} 13... b5 {[%clk 0:01:42.2]} 14. cxb5
{[%clk 0:01:45.8]} 14... e4 {[%clk 0:01:38.1]} 15. Nh2 {[%clk 0:01:38.5]} 15...
Ne3 {[%clk 0:01:35.6]} 16. Qb3 {[%clk 0:01:38.5]} 16... Nxg2 {[%clk 0:01:34.9]}
17. Kxg2 {[%clk 0:01:39.4]} 17... O-O {[%clk 0:01:29.2]} 18. Nc4 {[%clk
0:01:35.4]} 18... Bb7 {[%clk 0:01:21.3]} 19. Rd1 {[%clk 0:01:35.2]} 19... Qd7
{[%clk 0:01:10.7]} 20. Na5 {[%clk 0:01:28.5]} 20... Rae8 {[%clk 0:01:02]} 21. h5
{[%clk 0:01:25.2]} 21... Bc8 {[%clk 0:00:54.1]} 22. Bf4 {[%clk 0:01:24]} 22...
Bg5 {[%clk 0:00:49.1]} 23. Rh1 {[%clk 0:01:20.6]} 23... Bxf4 {[%clk 0:00:42.7]}
24. gxf4 {[%clk 0:01:20.4]} 24... e3 {[%clk 0:00:43.3]} 25. Raf1 {[%clk
0:01:15.3]} 25... Re4 {[%clk 0:00:43.4]} 26. Nc6 {[%clk 0:01:06.9]} 26... Rfe8
{[%clk 0:00:41.3]} 27. Rf3 {[%clk 0:01:05.8]} 27... Qf7 {[%clk 0:00:38.5]} 28.
Nf1 {[%clk 0:01:05.9]} 28... a6 {[%clk 0:00:26.8]} 29. Ng3 {[%clk 0:01:00.3]}
29... axb5 {[%clk 0:00:25.1]} 30. Nxe4 {[%clk 0:01:00.6]} 30... fxe4 {[%clk
0:00:24.6]} 31. Rg3 {[%clk 0:00:58.3]} 31... b4 {[%clk 0:00:10.5]} 32. f5 {[%clk
0:00:44.4]} 32... Bxf5 {[%clk 0:00:10.3]} 33. Qxe3 {[%clk 0:00:43.9]} 33... Kh7
{[%clk 0:00:07.6]} 34. Na5 {[%clk 0:00:28.3]} 34... Qxd5 {[%clk 0:00:07.8]} 35.
b3 {[%clk 0:00:28.9]} 35... Qe6 {[%clk 0:00:04.5]} 36. Qf4 {[%clk 0:00:24.2]}
36... e3 {[%clk 0:00:03.2]} 37. Rg1 {[%clk 0:00:22.2]} 37... Re7 {[%clk
0:00:02.3]} 38. Kh2 {[%clk 0:00:21.4]} 38... d5 {[%clk 0:00:01.5]} 39. Nc6
{[%clk 0:00:21.4]} 1-0

[Event "Early-Titled-Tuesday-Blitz-April-02-2024"]
[Site "Chess.com"]
[Date "2024.04.02"]
[Round "9"]
[White "RobertoJBM"]
[Black "MKlose11"]
[Result "1/2-1/2"]
[WhiteElo "2801"]
[BlackElo "2633"]
[TimeControl "180+1"]
[EndTime "9:45:10 PDT"]
[Termination "Game drawn - insufficient material"]

1. e4 {[%clk 0:03:00.9]} 1... e6 {[%clk 0:02:56.2]} 2. d4 {[%clk 0:03:00.5]}
2... d5 {[%clk 0:02:53.9]} 3. Nc3 {[%clk 0:03:00.6]} 3... Bb4 {[%clk 0:02:53.6]}
4. e5 {[%clk 0:03:00.4]} 4... Ne7 {[%clk 0:02:54]} 5. Bd2 {[%clk 0:02:59.1]}
5... b6 {[%clk 0:02:53.1]} 6. Nce2 {[%clk 0:02:54]} 6... Bxd2+ {[%clk
0:02:51.7]} 7. Qxd2 {[%clk 0:02:54.2]} 7... Ba6 {[%clk 0:02:52.4]} 8. O-O-O
{[%clk 0:02:52.6]} 8... c5 {[%clk 0:02:51.1]} 9. Kb1 {[%clk 0:02:52.8]} 9...
Nbc6 {[%clk 0:02:50.8]} 10. f4 {[%clk 0:02:52.5]} 10... cxd4 {[%clk 0:02:49.2]}
11. Nxd4 {[%clk 0:02:52.2]} 11... Bxf1 {[%clk 0:02:49.5]} 12. Rxf1 {[%clk
0:02:53.1]} 12... Nxd4 {[%clk 0:02:49.9]} 13. Qxd4 {[%clk 0:02:52.6]} 13... Rc8
{[%clk 0:02:48.2]} 14. Nf3 {[%clk 0:02:51.4]} 14... Qc7 {[%clk 0:02:46.3]} 15.
Qd3 {[%clk 0:02:49.2]} 15... Qc4 {[%clk 0:02:44]} 16. Nd4 {[%clk 0:02:46.9]}
16... Nc6 {[%clk 0:02:39.6]} 17. Qxc4 {[%clk 0:02:45.4]} 17... dxc4 {[%clk
0:02:37.7]} 18. Nb5 {[%clk 0:02:40.6]} 18... Ke7 {[%clk 0:02:33.1]} 19. Nd6
{[%clk 0:02:40]} 19... Rc7 {[%clk 0:02:29.6]} 20. Nxc4 {[%clk 0:02:39.8]} 20...
Nd4 {[%clk 0:02:23.8]} 21. Ne3 {[%clk 0:02:30.5]} 21... Rd8 {[%clk 0:02:12.7]}
22. Rf2 {[%clk 0:02:29.6]} 22... h5 {[%clk 0:02:06.5]} 23. c3 {[%clk 0:02:25.9]}
23... Nf5 {[%clk 0:02:02.1]} 24. Nxf5+ {[%clk 0:02:25.6]} 24... exf5 {[%clk
0:02:03]} 25. Kc2 {[%clk 0:02:25.8]} 25... Rcd7 {[%clk 0:02:01.5]} 26. Re1
{[%clk 0:02:24.6]} 26... Ke6 {[%clk 0:02:00]} 27. Ree2 {[%clk 0:02:23.2]} 27...
Rd1 {[%clk 0:01:56.5]} 28. Rd2 {[%clk 0:02:21.8]} 28... R8xd2+ {[%clk
0:01:56.7]} 29. Rxd2 {[%clk 0:02:22.7]} 29... Rg1 {[%clk 0:01:57.2]} 30. Kd3
{[%clk 0:02:19.8]} 30... h4 {[%clk 0:01:55.7]} 31. Ke3 {[%clk 0:02:19]} 31...
Ra1 {[%clk 0:01:50.1]} 32. b3 {[%clk 0:02:17.2]} 32... g6 {[%clk 0:01:48.2]} 33.
c4 {[%clk 0:02:12.3]} 33... Rc1 {[%clk 0:01:46.3]} 34. Rd6+ {[%clk 0:02:05.4]}
34... Ke7 {[%clk 0:01:44.7]} 35. Rc6 {[%clk 0:01:48.6]} 35... Rc2 {[%clk
0:01:35.7]} 36. Rc7+ {[%clk 0:01:48.6]} 36... Ke8 {[%clk 0:01:32.3]} 37. Rxa7
{[%clk 0:01:49.5]} 37... Rxg2 {[%clk 0:01:31.7]} 38. Rb7 {[%clk 0:01:30.6]}
38... Rxh2 {[%clk 0:01:21.4]} 39. Rxb6 {[%clk 0:01:30.8]} 39... Rxa2 {[%clk
0:01:20.8]} 40. Rb8+ {[%clk 0:01:29.5]} 40... Ke7 {[%clk 0:01:20.6]} 41. Rh8
{[%clk 0:01:29.9]} 41... Rb2 {[%clk 0:01:20.2]} 42. Rxh4 {[%clk 0:01:26.2]}
42... Rxb3+ {[%clk 0:01:19.8]} 43. Kd4 {[%clk 0:01:27.1]} 43... Rf3 {[%clk
0:01:12]} 44. Kd5 {[%clk 0:01:26.6]} 44... Rf1 {[%clk 0:01:09.3]} 45. c5 {[%clk
0:01:25.7]} 45... Rd1+ {[%clk 0:01:07.9]} 46. Kc6 {[%clk 0:01:24.7]} 46... f6
{[%clk 0:01:06]} 47. Rh7+ {[%clk 0:01:16.6]} 47... Ke6 {[%clk 0:01:05.4]} 48.
exf6 {[%clk 0:01:16.7]} 48... Kxf6 {[%clk 0:01:04.6]} 49. Rd7 {[%clk 0:01:16.5]}
49... Rf1 {[%clk 0:00:58.7]} 50. Rd4 {[%clk 0:01:12.3]} 50... Kf7 {[%clk
0:00:51.6]} 51. Kd7 {[%clk 0:01:09]} 51... g5 {[%clk 0:00:51]} 52. fxg5 {[%clk
0:01:05.1]} 52... Rc1 {[%clk 0:00:48.2]} 53. c6 {[%clk 0:01:03.9]} 53... Kg6
{[%clk 0:00:48.2]} 54. c7 {[%clk 0:01:02.1]} 54... Kxg5 {[%clk 0:00:48.5]} 55.
Rd6 {[%clk 0:00:59.1]} 55... Rxc7+ {[%clk 0:00:46]} 56. Kxc7 {[%clk 0:01:00]}
56... f4 {[%clk 0:00:46.6]} 57. Rd8 {[%clk 0:00:48.2]} 57... f3 {[%clk
0:00:45.8]} 58. Rf8 {[%clk 0:00:47.4]} 58... Kg4 {[%clk 0:00:45.5]} 59. Kd6
{[%clk 0:00:48.3]} 59... Kg3 {[%clk 0:00:43.8]} 60. Ke5 {[%clk 0:00:49.2]} 60...
f2 {[%clk 0:00:44.2]} 61. Ke4 {[%clk 0:00:48.5]} 61... Kg2 {[%clk 0:00:44.6]}
62. Rxf2+ {[%clk 0:00:33.3]} 62... Kxf2 {[%clk 0:00:44.2]} 1/2-1/2

[Event "Early-Titled-Tuesday-Blitz-April-02-2024"]
[Site "Chess.com"]
[Date "2024.04.02"]
[Round "9"]
[White "zano2023"]
[Black "Escudito"]
[Result "1-0"]
[WhiteElo "2233"]
[BlackElo "2365"]
[TimeControl "180+1"]
[EndTime "9:45:13 PDT"]
[Termination "zano2023 won on time"]

1. d4 {[%clk 0:03:00.9]} 1... d5 {[%clk 0:02:56.9]} 2. Nf3 {[%clk 0:02:58.6]}
2... c5 {[%clk 0:02:51.9]} 3. e3 {[%clk 0:02:56.8]} 3... Nc6 {[%clk 0:02:49.2]}
4. c3 {[%clk 0:02:55.1]} 4... e6 {[%clk 0:02:40.6]} 5. Bd3 {[%clk 0:02:50.2]}
5... Bd6 {[%clk 0:02:30.5]} 6. O-O {[%clk 0:02:47.7]} 6... cxd4 {[%clk
0:02:27.7]} 7. exd4 {[%clk 0:02:46.2]} 7... Nf6 {[%clk 0:02:27]} 8. Bg5 {[%clk
0:02:33.1]} 8... h6 {[%clk 0:02:26.4]} 9. Bh4 {[%clk 0:02:31.9]} 9... Qc7 {[%clk
0:02:06.3]} 10. Nbd2 {[%clk 0:02:30.2]} 10... g5 {[%clk 0:01:50.3]} 11. Bg3
{[%clk 0:02:29.5]} 11... g4 {[%clk 0:01:45.2]} 12. Nh4 {[%clk 0:01:55.4]} 12...
Bd7 {[%clk 0:01:26.9]} 13. Re1 {[%clk 0:01:52]} 13... O-O-O {[%clk 0:01:22.1]}
14. Nb3 {[%clk 0:01:38.9]} 14... Bxg3 {[%clk 0:01:18.5]} 15. hxg3 {[%clk
0:01:38.4]} 15... Kb8 {[%clk 0:00:46.3]} 16. Nc5 {[%clk 0:01:34.5]} 16... Bc8
{[%clk 0:00:39]} 17. Be2 {[%clk 0:01:21.1]} 17... h5 {[%clk 0:00:37.1]} 18. Nd3
{[%clk 0:01:20.4]} 18... Ne4 {[%clk 0:00:36.2]} 19. a4 {[%clk 0:01:02.2]} 19...
f6 {[%clk 0:00:33.5]} 20. Ng6 {[%clk 0:01:00.8]} 20... Rh6 {[%clk 0:00:28.9]}
21. Nh4 {[%clk 0:00:56.2]} 21... Re8 {[%clk 0:00:19]} 22. Nf4 {[%clk 0:00:51.6]}
22... Rh7 {[%clk 0:00:15.9]} 23. Bd3 {[%clk 0:00:51.2]} 23... f5 {[%clk
0:00:13]} 24. Kh2 {[%clk 0:00:42.9]} 24... Rd8 {[%clk 0:00:13.3]} 25. Qe2 {[%clk
0:00:40.6]} 25... Re7 {[%clk 0:00:11.3]} 26. f3 {[%clk 0:00:37.6]} 26... Nxg3
{[%clk 0:00:06.2]} 27. Kxg3 {[%clk 0:00:36.1]} 27... e5 {[%clk 0:00:06.8]} 28.
dxe5 {[%clk 0:00:34.8]} 28... Nxe5 {[%clk 0:00:06]} 29. Bc2 {[%clk 0:00:29.6]}
29... Rde8 {[%clk 0:00:05.7]} 30. Nxd5 {[%clk 0:00:22.5]} 30... Qd6 {[%clk
0:00:05.7]} 31. Nxe7 {[%clk 0:00:20.8]} 31... Nd3+ {[%clk 0:00:02.5]} 32. Qe5
{[%clk 0:00:08.1]} 1-0